bitfinex-derivatives/quotes_ETHF0:USTF0_20260310
["timestamp","ask_amount","ask_price","bid_price","bid_amount"]
[1773150447620,2.09924309,2037.4,2036.4,4.64562715]
[1773150447930,2.09924309,2037.4,2036.0,4.64562715]
[1773150447931,2.08529814,2037.0,2036.0,4.64562715]
[1773150448127,1.89224598,2037.0,2036.0,4.64562715]
[1773150448625,1.91422624,2037.4,2036.0,4.64562715]
[1773150448922,1.91422624,2037.4,2036.2,4.64562715]
[1773150449322,1.91768352,2037.6,2036.3,4.64562715]
[1773150449523,2.16305352,2037.6,2036.5,4.64562715]
[1773150450730,0.2505905,2037.6,2036.6,4.64562715]
[1773150450927,0.2505905,2037.6,2036.6,6.635]
[1773150451127,0.2505905,2037.6,2036.7,4.64562715]
[1773150451431,1.9733608,2037.6,2036.7,4.64562715]
[1773150453632,0.0052205,2037.6,2036.7,4.64562715]
[1773150454133,0.0052205,2037.6,2036.9,4.31616196]
[1773150455238,0.2505905,2037.6,2036.9,4.31616196]
[1773150455733,1.90891216,2037.6,2036.9,4.31616196]
[1773150455931,0.2505905,2037.6,2036.9,4.31616196]
[1773150456127,0.0052205,2037.6,2036.9,4.31616196]
[1773150456326,1.69270193,2037.6,2036.9,4.31616196]
[1773150456830,0.0052205,2037.6,2036.9,4.31616196]
[1773150457930,2.50328368,2038.1,2036.9,4.31616196]
[1773150458124,1.6615126,2038.0,2036.9,4.31616196]
[1773150458330,1.6615126,2038.0,2037.1,4.31616196]
[1773150458632,0.84177108,2038.1,2037.1,4.31616196]
[1773150458832,0.84691847,2038.1,2037.1,4.31616196]
[1773150459033,0.24532,2038.0,2037.1,4.31616196]
[1773150459335,0.84691847,2038.1,2037.1,4.31616196]
[1773150459837,0.84691847,2038.1,2037.4,4.31616196]
[1773150460027,2.47760093,2038.8,2037.6,4.31616196]
[1773150460231,0.24521,2039.0,2037.6,4.31616196]
[1773150460232,2.75723316,2039.0,2037.7,4.31616196]
[1773150460431,2.75723316,2039.0,2037.9,4.31616196]
[1773150460833,2.75723316,2039.0,2038.0,4.31616196]
[1773150461037,2.76272909,2039.0,2038.0,4.31616196]
[1773150461335,2.79860495,2039.8,2038.4,4.31616196]
[1773150461525,2.53988089,2039.5,2038.4,4.31616196]
[1773150461928,0.24521,2039.0,2038.4,4.31616196]
[1773150462131,0.25043389,2039.0,2038.4,4.31616196]
[1773150462336,3.29701328,2038.8,2038.1,3.82054196]
[1773150462532,3.29701328,2038.8,2037.9,4.31616196]
[1773150463331,4.07163411,2038.3,2037.5,4.31616196]
[1773150463539,4.07163411,2038.3,2037.4,0.00603438]
[1773150463540,10.40773212,2038.2,2037.4,0.00603438]
[1773150463726,4.37317212,2038.0,2037.4,0.00603438]
[1773150463927,4.45104609,2037.7,2037.0,3.80677196]
[1773150464328,4.69639609,2037.8,2037.0,3.80677196]
[1773150464833,4.69639609,2037.8,2036.3,7.66119374]
[1773150464834,4.69641609,2037.6,2036.8,4.31616196]
[1773150465033,4.69641609,2037.6,2035.6,2.89163418]
[1773150465034,4.69647609,2037.1,2036.2,4.31616196]
[1773150465235,4.45104609,2036.7,2035.8,4.31616196]
[1773150465430,4.69655609,2036.4,2035.5,4.31616196]
[1773150465636,4.45104609,2036.1,2035.0,4.31616196]
[1773150465836,4.45104609,2035.9,2035.0,0.00370211]
[1773150466439,4.45104609,2035.9,2035.0,4.53342603]
[1773150467730,4.45104609,2035.9,2034.3,6.1398693]
[1773150467731,4.57008803,2035.7,2034.7,4.52972392]
[1773150468238,0.24559,2035.8,2034.7,4.52972392]
[1773150468436,4.81567803,2035.8,2034.7,4.52972392]
[1773150468640,4.57008803,2035.5,2034.1,4.52972392]
[1773150468942,4.57008803,2035.4,2034.1,4.53450306]
[1773150469140,4.57008803,2035.3,2034.1,4.53450306]
[1773150469440,4.57008803,2035.1,2034.1,4.53450306]
[1773150469636,4.57008803,2034.7,2033.5,4.52972392]
[1773150469833,4.57008803,2034.1,2033.0,4.52972392]
[1773150470336,4.57008803,2034.5,2033.0,4.52972392]
[1773150470534,11.00308803,2034.4,2033.0,4.52972392]
[1773150470737,4.57008803,2034.3,2033.0,4.53409986]
[1773150471240,4.57008803,2034.1,2033.0,4.53409986]
[1773150471433,12.7282133,2034.4,2033.0,4.53409986]
[1773150471434,11.25259133,2034.4,2033.0,4.53409986]
[1773150471634,4.57008803,2034.3,2033.0,4.53409986]
[1773150471843,6.6825033,2034.4,2033.0,4.53409986]
[1773150471844,0.0037433,2034.4,2033.0,4.53409986]
[1773150473436,0.0037433,2034.4,2033.2,4.52972392]
[1773150474044,0.0037433,2034.4,2033.4,4.52972392]
[1773150476038,4.57008803,2035.0,2033.4,4.52972392]
[1773150477133,4.57489968,2035.0,2033.4,4.52972392]
[1773150477844,4.57489968,2035.0,2033.6,4.52972392]
[1773150478542,4.57008803,2034.9,2033.6,4.52972392]
[1773150480751,0.00481165,2035.0,2033.6,4.52972392]
[1773150480954,4.57489968,2035.0,2033.6,4.52972392]
[1773150481250,4.57008803,2035.6,2034.0,4.52972392]
[1773150481452,4.81571803,2035.5,2034.2,4.52972392]
[1773150481647,4.57008803,2035.4,2034.2,4.52972392]
[1773150481949,4.57008803,2035.8,2034.2,4.52972392]
[1773150482154,0.24555,2036.1,2034.4,4.52972392]
[1773150482155,4.57008803,2036.1,2034.4,4.52972392]
[1773150482356,4.5753147,2036.1,2034.4,4.52972392]
[1773150483060,0.00522667,2036.1,2034.6,4.52972392]
[1773150483352,0.00522667,2036.1,2035.0,4.52972392]
[1773150483549,4.57008803,2036.7,2035.2,4.52972392]
[1773150484556,4.57467259,2036.7,2035.2,4.52972392]
[1773150485851,4.66723525,2036.4,2035.2,4.52972392]
[1773150486155,4.42630981,2036.7,2035.2,4.52972392]
[1773150486457,0.00458456,2036.7,2035.4,4.34207013]
[1773150486748,0.00458456,2036.7,2035.5,4.34207013]
[1773150487154,4.42630981,2036.7,2035.5,4.34207013]
[1773150487751,4.42172525,2036.5,2035.5,4.34207013]
[1773150487951,0.24549,2036.6,2034.8,4.34207013]
[1773150487952,4.42172525,2036.3,2034.8,4.34207013]
[1773150490555,4.42172525,2036.1,2034.8,4.34207013]
[1773150491358,4.66731525,2035.8,2034.8,4.34207013]
[1773150491663,4.66733525,2035.6,2034.8,4.34207013]
[1773150491964,4.66733525,2035.6,2034.6,4.34759145]
[1773150493760,4.42172525,2035.9,2034.6,4.34759145]
[1773150494161,6.04370456,2036.7,2034.8,4.34207013]
[1773150494162,4.42172525,2036.6,2034.8,4.34207013]
[1773150494358,4.66725525,2036.3,2034.9,4.34207013]
[1773150495267,4.42172525,2036.3,2035.0,4.34207013]
[1773150496065,4.42172525,2036.5,2035.0,4.34207013]
[1773150496868,0.00458456,2036.7,2035.3,4.58772013]
[1773150497167,0.00458456,2036.7,2035.6,4.34207013]
[1773150497369,4.66711525,2037.4,2035.8,4.34207013]
[1773150497565,4.66711525,2037.4,2035.8,4.58765013]
[1773150498371,4.66714525,2037.2,2035.8,4.34207013]
[1773150498573,4.66714525,2037.2,2035.9,4.34207013]
[1773150498773,4.42172525,2036.9,2035.9,4.34207013]
[1773150499072,4.42172525,2036.7,2035.9,4.34207013]
[1773150500272,4.42172525,2037.2,2035.9,4.34207013]
[1773150500476,0.00609128,2037.4,2036.3,4.34207013]
[1773150500776,4.42172525,2037.3,2036.4,4.34207013]
[1773150501475,0.00609128,2037.4,2036.4,4.34207013]
[1773150501675,4.42781653,2037.4,2036.4,4.34207013]
[1773150502073,4.66713525,2037.3,2036.4,4.34207013]
[1773150502878,0.00609128,2037.4,2036.4,4.34207013]
[1773150503278,4.42172525,2038.1,2036.6,4.34207013]
[1773150503578,4.42172525,2038.1,2036.8,4.34207013]
[1773150503776,4.66700525,2038.4,2036.8,4.34207013]
[1773150504276,4.67195737,2038.4,2036.8,4.34207013]
[1773150504478,0.00495212,2038.4,2037.0,4.34207013]
[1773150504773,0.24521,2039.0,2037.4,4.34207013]
[1773150504978,4.66693525,2039.0,2037.6,4.34207013]
[1773150505372,4.42172525,2038.5,2037.6,4.34207013]
[1773150505577,0.24527,2038.4,2037.6,4.34207013]
[1773150505771,0.24953403,2038.4,2037.6,4.34207013]
[1773150506176,0.00426403,2038.4,2037.6,4.34207013]
[1773150507977,4.42598928,2038.4,2037.6,4.34207013]
[1773150508180,4.42172525,2038.2,2036.8,4.34207013]
[1773150508474,0.00426403,2038.4,2036.8,4.34207013]
[1773150508680,0.00426403,2038.4,2037.0,4.34207013]
[1773150509382,4.42598928,2038.4,2037.0,4.34207013]
[1773150509782,0.00426403,2038.4,2037.2,4.34207013]
[1773150509981,0.00426403,2038.4,2037.0,3.85204068]
[1773150509982,4.66694525,2038.9,2037.4,4.34207013]
[1773150511074,4.67047504,2038.9,2037.4,4.34207013]
[1773150511281,4.67047504,2038.9,2037.6,4.34207013]
[1773150512180,4.42525504,2038.9,2037.6,4.34207013]
[1773150512682,0.00352979,2038.9,2037.7,0.24536]
[1773150512883,0.00352979,2038.9,2037.8,4.34207013]
[1773150513084,0.00352979,2038.9,2037.8,4.34640067]
[1773150513480,4.42172525,2038.7,2037.8,4.34640067]
[1773150514077,0.24523,2038.8,2037.8,4.34640067]
[1773150514280,0.00352979,2038.9,2037.8,4.34640067]
[1773150514678,0.24517,2039.3,2037.9,0.24533]
[1773150514881,4.03549045,2039.5,2038.0,4.03134697]
[1773150515085,4.03549045,2039.5,2037.9,0.24533]
[1773150515086,4.28060045,2039.8,2038.2,4.03134697]
[1773150515587,4.28062045,2039.6,2038.2,4.03134697]
[1773150515782,4.28638202,2039.6,2038.2,4.03134697]
[1773150516488,4.28067045,2039.2,2038.2,4.03134697]
[1773150517485,4.03549045,2039.1,2038.2,4.03134697]
[1773150517790,0.24518,2039.2,2038.2,4.03134697]
[1773150517985,4.04125202,2039.6,2038.2,4.03134697]
[1773150518190,4.03549045,2039.2,2038.2,4.03134697]
[1773150519284,4.28070045,2038.9,2038.2,4.03134697]
[1773150519688,4.28070045,2038.9,2037.9,4.03134697]
[1773150519888,4.03549045,2039.1,2037.9,4.03134697]
[1773150520288,4.28069045,2039.0,2037.9,4.03134697]
[1773150521393,0.2452,2039.0,2037.9,4.03134697]
[1773150522292,4.28069045,2039.0,2037.9,4.03134697]
[1773150523286,0.24519,2039.1,2037.9,4.03134697]
[1773150523588,6.428,2039.0,2037.9,4.03134697]
[1773150523784,4.28070045,2038.9,2037.9,4.03134697]
[1773150524186,4.28075045,2038.5,2037.8,0.00433054]
[1773150524495,4.28080045,2038.1,2037.4,4.03134697]
[1773150524695,4.03549045,2038.0,2037.4,4.03134697]
[1773150524895,4.03549045,2038.0,2036.7,4.03134697]
[1773150525392,4.28082045,2037.9,2036.7,4.03710243]
[1773150526586,10.70882045,2037.9,2036.7,4.03710243]
[1773150526893,0.00563854,2038.0,2036.7,4.03710243]
[1773150527194,4.40036572,2038.0,2036.7,4.03710243]
[1773150528291,4.15503572,2038.0,2036.8,4.14899012]
[1773150528495,4.15503572,2038.0,2037.0,10.26114207]
[1773150528496,0.00563854,2038.0,2037.0,10.26114207]
[1773150528695,0.00563854,2038.0,2037.1,4.14899012]
[1773150528892,0.00563854,2038.0,2037.2,4.14899012]
[1773150529395,4.15503572,2038.0,2037.2,4.14899012]
[1773150530597,0.00563854,2038.0,2037.2,4.14899012]
[1773150531791,6.429,2038.5,2037.4,4.14899012]
[1773150531995,10.57839718,2038.5,2037.4,4.14899012]
[1773150532190,4.14939718,2038.4,2037.4,4.14899012]
[1773150532396,10.82364718,2038.6,2037.4,4.14899012]
[1773150532597,4.14939718,2038.5,2037.5,4.14899012]
[1773150532796,4.15360958,2038.5,2037.5,4.14899012]
[1773150533085,0.0042124,2038.5,2037.5,4.14899012]
[1773150533297,4.15360958,2038.5,2037.5,4.14899012]
[1773150533796,4.39469718,2038.2,2037.5,4.14899012]
[1773150533993,4.14939718,2038.4,2037.5,4.14899012]
[1773150534196,6.4332124,2038.5,2037.5,4.14899012]
[1773150534899,4.14939718,2038.4,2037.5,4.14899012]
[1773150535096,4.39468718,2038.3,2037.5,4.14899012]
[1773150535591,10.82368718,2038.3,2037.5,4.14899012]
[1773150535994,4.14939718,2038.2,2037.5,4.14899012]
[1773150536704,4.39470718,2038.1,2037.5,4.14899012]
[1773150536994,4.39470718,2038.1,2037.1,4.14899012]
[1773150537896,10.57839718,2038.0,2037.1,4.14899012]
[1773150538093,4.14939718,2038.0,2037.1,4.14899012]
[1773150538299,0.24531,2038.1,2037.1,4.14899012]
[1773150538601,4.39470718,2038.1,2037.1,4.14899012]
[1773150539998,0.24531,2038.1,2037.2,4.14899012]
[1773150540897,4.39470718,2038.1,2037.2,4.14899012]
[1773150542103,4.39475718,2037.7,2036.9,4.14899012]
[1773150542299,4.14939718,2038.0,2036.9,4.14899012]
[1773150542600,10.57839718,2038.0,2036.9,4.14899012]
[1773150542800,0.24538,2037.5,2036.9,4.14899012]
[1773150542997,4.39477718,2037.5,2036.7,0.00575546]
[1773150543195,4.39477718,2037.5,2036.7,4.15474558]
[1773150543902,9.31785326,2038.0,2036.7,4.15474558]
[1773150543903,3.97205547,2037.7,2036.7,4.15474558]
[1773150544103,3.97205547,2037.8,2036.7,4.15474558]
[1773150544499,10.64638547,2038.0,2036.8,3.91952215]
[1773150544698,10.64638547,2038.0,2036.9,3.91952215]
[1773150544895,3.97205547,2038.0,2036.9,3.91952215]
[1773150545095,6.429,2038.3,2037.0,3.91952215]
[1773150545301,10.64634547,2038.3,2037.1,3.91952215]
[1773150545702,6.429,2038.2,2037.1,3.91952215]
[1773150546102,3.97205547,2038.2,2037.1,3.91952215]
[1773150546304,3.97205547,2038.2,2037.2,3.91952215]
[1773150546505,10.40105547,2038.2,2037.2,3.91952215]
[1773150547205,4.21736547,2038.1,2037.2,3.91952215]
[1773150547404,10.40105547,2038.2,2037.2,3.91952215]
[1773150547801,3.97205547,2038.4,2037.2,3.91952215]
[1773150548002,10.40105547,2038.3,2037.2,3.91952215]
[1773150548204,3.97205547,2038.2,2037.2,3.91952215]
[1773150548403,4.21736547,2038.2,2037.2,3.91952215]
[1773150549708,3.97205547,2038.1,2037.2,3.91952215]
[1773150550505,0.24531,2038.2,2037.2,3.91952215]
[1773150550711,3.97205547,2038.4,2037.3,3.91952215]
[1773150550907,6.4332124,2038.5,2037.3,3.91952215]
[1773150550908,3.97205547,2038.2,2037.3,3.91952215]
[1773150551108,3.97205547,2038.0,2037.3,3.91952215]
[1773150551716,4.21738547,2037.9,2037.3,3.91952215]
[1773150551914,6.0343,2038.3,2036.7,9.57860872]
[1773150551915,3.97205547,2037.5,2036.9,3.91952215]
[1773150552316,3.97205547,2037.7,2036.9,3.91952215]
[1773150552616,10.40105547,2037.9,2036.9,3.91952215]
[1773150552817,4.21741547,2037.7,2036.9,3.91952215]
[1773150554223,3.97205547,2037.7,2036.9,3.91952215]
[1773150554521,6.429,2037.9,2037.0,3.91952215]
[1773150554721,3.97205547,2038.1,2037.0,3.91952215]
[1773150555624,6.43,2038.3,2037.1,3.91952215]
[1773150555923,6.43,2038.3,2037.3,3.91952215]
[1773150555924,10.40205547,2038.3,2037.3,3.91952215]
[1773150556521,10.64735547,2038.3,2037.3,3.91952215]
[1773150556722,3.97205547,2037.7,2037.1,3.91952215]
[1773150558328,6.43,2037.9,2037.1,3.91952215]
[1773150558516,3.97205547,2038.0,2037.1,3.91952215]
[1773150558517,10.40205547,2038.0,2037.1,3.91952215]
[1773150558821,4.21740547,2037.8,2037.1,3.91952215]
[1773150559227,4.21743547,2037.6,2036.9,3.91952215]
[1773150559525,3.97205547,2037.4,2036.7,3.92527761]
[1773150559721,4.21746547,2037.3,2036.7,3.92527761]
[1773150560323,10.40205547,2037.5,2036.7,3.92527761]
[1773150560621,6.43,2037.4,2036.8,3.91952215]
[1773150561022,0.24541,2037.3,2036.8,3.91952215]
[1773150561219,3.97205547,2037.5,2036.8,3.91952215]
[1773150561425,10.40205547,2037.5,2036.8,3.91952215]
[1773150562329,10.40205547,2037.5,2036.9,3.91952215]
[1773150562828,4.21744547,2037.4,2036.7,10.03742956]
[1773150563023,3.97205547,2037.8,2036.7,3.92527761]
[1773150563223,3.97205547,2037.6,2036.7,3.92527761]
[1773150563424,3.97205547,2037.6,2036.8,3.91952215]
[1773150563625,3.97205547,2037.4,2036.8,3.91952215]
[1773150563924,0.24538,2037.5,2036.8,3.91952215]
[1773150564122,4.21743547,2037.5,2036.8,3.91952215]
[1773150564724,4.21743547,2037.5,2036.7,3.92527761]
[1773150564928,4.21743547,2037.5,2036.7,0.00575546]
[1773150565130,6.43,2037.4,2036.7,3.92527761]
[1773150565432,10.40205547,2037.4,2036.7,3.92527761]
[1773150565927,3.97205547,2037.3,2036.7,3.92527761]
[1773150567431,4.21743547,2037.5,2036.7,3.92527761]
[1773150567632,6.431,2037.4,2036.7,3.92527761]
[1773150568028,10.40305547,2037.4,2036.7,3.92527761]
[1773150568228,6.431,2037.4,2036.7,3.92527761]
[1773150568430,3.97205547,2037.6,2036.7,3.92527761]
[1773150568732,10.40305547,2037.6,2036.8,3.91952215]
[1773150569134,3.97205547,2037.4,2036.8,3.91952215]
[1773150569429,3.97205547,2037.4,2036.7,0.00575546]
[1773150569635,3.97205547,2037.4,2036.7,3.92527761]
[1773150569936,4.21746547,2037.3,2036.7,3.92527761]
[1773150570234,4.21746547,2037.3,2036.7,0.00575546]
[1773150570434,4.21746547,2037.3,2036.7,3.92527761]
[1773150570628,3.97205547,2037.6,2036.7,3.92527761]
[1773150570829,3.97205547,2037.6,2036.8,3.91952215]
[1773150571027,0.24538,2037.5,2036.8,3.91952215]
[1773150571436,6.431,2037.5,2036.8,3.91952215]
[1773150571637,6.431,2037.6,2036.9,3.91952215]
[1773150572134,10.40305547,2038.0,2037.3,3.91952215]
[1773150572434,3.97205547,2038.0,2037.3,3.91952215]
[1773150572630,0.24532,2038.1,2037.3,3.91952215]
[1773150572838,6.431,2038.1,2037.3,3.91952215]
[1773150573035,10.40305547,2038.2,2037.3,3.91952215]
[1773150573226,6.431,2038.3,2037.5,3.91952215]
[1773150573434,0.0042124,2038.5,2037.6,3.91952215]
[1773150573827,3.61967454,2038.5,2037.6,3.91952215]
[1773150574339,0.0042124,2038.5,2037.6,3.91952215]
[1773150574840,3.61967454,2038.5,2037.7,3.82166627]
[1773150576636,3.61546214,2038.3,2037.5,3.82166627]
[1773150576937,6.67527,2038.4,2037.5,3.82166627]
[1773150577137,3.61967454,2038.5,2037.7,3.82166627]
[1773150577339,3.86494454,2038.5,2037.7,3.82166627]
[1773150577538,3.86494454,2038.5,2037.4,9.93381822]
[1773150577741,3.86494454,2038.5,2037.4,3.82166627]
[1773150578144,6.43,2038.4,2037.5,3.82166627]
[1773150578343,3.86494454,2038.5,2037.5,3.82166627]
[1773150578640,3.86075214,2038.3,2037.6,3.82166627]
[1773150579432,3.61967454,2038.5,2037.6,3.82166627]
[1773150579637,6.43,2038.4,2037.6,3.82166627]
[1773150580239,3.61967454,2038.5,2037.6,3.82166627]
[1773150580441,3.61546214,2039.1,2038.1,3.82166627]
[1773150580836,3.61546214,2039.1,2038.2,3.82166627]
[1773150581441,3.61546214,2038.9,2038.2,0.00456061]
[1773150581935,3.61546214,2038.9,2038.2,3.82622688]
[1773150582550,3.61546214,2038.8,2038.2,3.82622688]
[1773150582743,6.429,2038.9,2038.2,3.82622688]
[1773150582950,10.04446214,2038.9,2038.2,3.82622688]
[1773150583151,3.61546214,2038.8,2038.2,3.82622688]
[1773150583451,3.61546214,2038.8,2038.2,0.00456061]
[1773150584146,3.621287,2039.1,2038.2,3.82622688]
[1773150584447,3.61546214,2038.9,2038.2,3.82622688]
[1773150584845,6.429,2039.0,2038.2,3.82622688]
[1773150586251,3.51921751,2038.9,2038.2,3.82622688]
[1773150586746,3.51921751,2038.9,2038.2,3.61519393]
[1773150589544,3.51921751,2039.5,2038.3,3.61063332]
[1773150589746,3.51921751,2039.5,2038.5,3.61063332]
[1773150590145,6.428,2039.6,2038.5,3.61063332]
[1773150590146,3.76436751,2039.4,2038.5,3.61063332]
[1773150590542,9.94721751,2039.3,2038.5,3.61063332]
[1773150590744,3.51921751,2039.1,2038.3,3.61063332]
[1773150591347,3.51921751,2038.9,2038.3,3.61063332]
[1773150591752,0.2452,2039.0,2038.3,3.61063332]
[1773150592259,3.51921751,2039.2,2038.3,3.61063332]
[1773150592552,6.43054033,2039.3,2038.3,3.61063332]
[1773150592856,3.76439751,2039.2,2038.3,3.61063332]
[1773150593449,3.51921751,2039.2,2038.3,3.61063332]
[1773150594356,6.43054033,2039.3,2038.3,3.61063332]
[1773150594550,3.51921751,2039.2,2038.3,3.61063332]
[1773150594754,6.67571033,2039.3,2038.3,3.61063332]
[1773150595052,0.00354033,2039.3,2038.3,3.61063332]
[1773150595356,0.00354033,2039.3,2038.3,3.85591332]
[1773150596153,0.00354033,2039.3,2038.3,3.61063332]
[1773150597158,3.52275784,2039.3,2038.3,3.61063332]
[1773150597756,3.51921751,2039.1,2038.3,3.61063332]
[1773150598060,0.24518,2039.2,2038.3,3.61063332]
[1773150598556,3.76439751,2039.2,2038.3,3.61063332]
[1773150599356,0.00354033,2039.3,2038.3,3.61063332]
[1773150599849,0.00354033,2039.3,2038.3,9.72278527]
[1773150600050,6.02665,2040.9,2038.8,9.72278527]
[1773150600051,3.51921751,2040.0,2038.8,9.72278527]
[1773150600360,3.51921751,2040.6,2039.3,3.61063332]
[1773150600557,3.51921751,2040.4,2039.5,3.61063332]
[1773150600960,3.76425751,2040.3,2039.5,3.61063332]
[1773150601258,3.76433751,2039.7,2039.0,3.61063332]
[1773150601755,3.51921751,2039.4,2038.7,3.61063332]
[1773150601955,3.51921751,2039.2,2038.5,3.61063332]
[1773150602263,3.51921751,2039.0,2038.2,3.61519393]
[1773150602457,10.19040751,2039.1,2038.2,3.61519393]
[1773150602755,3.51921751,2039.0,2038.2,3.61519393]
[1773150603258,6.67119,2039.1,2038.2,3.61519393]
[1773150603467,3.51921751,2039.7,2038.4,3.61063332]
[1773150603757,6.426,2039.9,2038.7,9.6451714]
[1773150603961,0.24506,2040.2,2038.7,9.6451714]
[1773150603962,10.0772803,2040.2,2039.0,3.53301945]
[1773150604353,3.6513003,2040.0,2039.0,3.53301945]
[1773150604561,3.4062203,2039.7,2038.7,3.53301945]
[1773150604861,3.4062203,2039.5,2038.4,3.53301945]
[1773150605059,3.4062203,2039.1,2038.4,3.53301945]
[1773150605359,3.4062203,2039.4,2038.4,3.53301945]
[1773150605565,6.426,2039.3,2038.4,3.53301945]
[1773150605860,3.4062203,2039.0,2038.4,3.53301945]
[1773150606061,0.24519,2039.1,2038.4,3.53301945]
[1773150606260,3.6514103,2039.1,2038.3,3.53301945]
[1773150606653,0.24519,2039.1,2038.3,3.53301945]
[1773150606858,3.6514103,2039.1,2038.3,3.53301945]
[1773150607062,3.6514103,2039.1,2038.2,3.53758006]
[1773150607656,0.24512,2039.7,2038.2,3.53758006]
[1773150607856,3.4062203,2039.3,2038.2,3.53758006]
[1773150608060,3.4062203,2039.1,2038.2,3.53758006]
[1773150608360,6.426,2039.1,2038.2,3.53758006]
[1773150608563,9.8322203,2039.1,2038.2,3.53758006]
[1773150608762,3.4062203,2039.0,2038.2,3.53758006]
[1773150609061,3.6514303,2038.9,2038.2,3.53758006]
[1773150609264,3.6559137,2038.9,2038.0,3.53301945]
[1773150609855,3.4062203,2038.6,2038.0,3.53301945]
[1773150610265,3.4062203,2038.6,2038.0,3.53780159]
[1773150610558,3.4107037,2038.9,2038.0,3.53780159]
[1773150610758,3.4062203,2038.3,2037.6,3.53301945]
[1773150611156,3.4062203,2038.1,2037.2,3.53301945]
[1773150611358,6.6713,2038.2,2037.2,3.53301945]
[1773150611359,6.426,2038.2,2037.2,3.53301945]
[1773150611556,3.4062203,2038.8,2037.5,3.53301945]
[1773150611757,3.4062203,2038.4,2037.5,3.53693375]
[1773150611960,3.4062203,2038.3,2037.5,3.53693375]
[1773150612162,6.426,2038.4,2037.5,3.53693375]
[1773150612371,3.4062203,2038.7,2037.7,3.53301945]
[1773150612664,3.4062203,2038.8,2037.7,3.53301945]
[1773150613462,3.4062203,2038.8,2037.8,3.53301945]
[1773150613963,3.6514603,2038.7,2037.8,3.53301945]
[1773150614366,3.4062203,2038.7,2037.8,3.53301945]
[1773150615260,3.6514603,2038.7,2037.8,3.53301945]
[1773150615465,3.4062203,2038.6,2037.6,3.53301945]
[1773150615666,9.8332203,2038.6,2037.7,3.53301945]
[1773150616566,9.8332203,2038.8,2037.8,3.53301945]
[1773150616765,3.4062203,2038.7,2037.8,3.53301945]
[1773150618162,0.24525,2038.6,2037.8,3.53301945]
[1773150618367,3.6514703,2038.6,2037.8,3.53301945]
[1773150618561,3.6514703,2038.6,2037.6,3.53301945]
[1773150619564,0.24527,2038.4,2037.6,3.53301945]
[1773150619765,3.4062203,2038.7,2037.6,3.53301945]
[1773150620363,6.427,2038.8,2037.6,3.53301945]
[1773150620364,9.6847203,2038.6,2037.6,3.53301945]
[1773150620569,3.4062203,2038.3,2037.6,3.53301945]
[1773150621169,0.24527,2038.4,2037.6,3.53301945]
[1773150621366,3.6514903,2038.4,2037.6,3.53301945]
[1773150621972,3.6514903,2038.4,2037.5,0.0039143]
[1773150622166,0.0044834,2038.9,2037.2,6.11215195]
[1773150622167,9.4412403,2038.0,2037.2,6.11215195]
[1773150622368,2.63408148,2037.8,2036.9,3.53301945]
[1773150622568,2.87943148,2037.8,2036.9,3.53301945]
[1773150622765,0.24537,2037.6,2036.4,3.53301945]
[1773150623072,2.62554296,2037.5,2036.4,3.53301945]
[1773150623269,2.62554296,2037.5,2036.4,3.5375247]
[1773150623663,0.24537,2037.6,2036.4,3.5375247]
[1773150623664,9.14773071,2037.4,2036.4,3.5375247]
[1773150623869,2.72073071,2037.3,2036.4,3.5375247]
[1773150624271,0.00504733,2037.4,2036.4,3.5375247]
[1773150624768,2.66327154,2037.4,2036.4,3.5375247]
[1773150624965,2.90363421,2037.3,2036.4,3.5375247]
[1773150625566,2.89509123,2037.1,2036.4,3.5375247]
[1773150625765,2.89509123,2037.1,2036.4,0.00450525]
[1773150625977,2.89509123,2037.1,2036.2,3.53301945]
[1773150626269,2.64966123,2036.8,2036.0,3.53301945]
[1773150626476,6.428,2036.9,2036.0,3.53301945]
[1773150626677,6.428,2037.2,2036.0,3.53301945]
[1773150626866,2.62165224,2037.3,2036.0,3.53301945]
[1773150626867,2.62165224,2037.3,2036.0,3.53885961]
[1773150627072,9.04965224,2037.3,2036.0,3.53885961]
[1773150627268,0.00504733,2037.4,2036.1,6.807]
[1773150627577,0.00504733,2037.4,2036.4,3.53301945]
[1773150628367,0.24536,2037.7,2036.4,3.53301945]
[1773150628772,2.52621705,2037.8,2036.4,3.53301945]
[1773150629075,2.76803206,2037.9,2036.6,3.53301945]
[1773150629271,2.52304635,2037.8,2036.6,3.53301945]
[1773150629473,2.52811233,2037.8,2036.6,3.53301945]
[1773150630279,2.55225434,2037.6,2036.6,3.53301945]
[1773150630473,2.5437496,2037.4,2036.6,3.53301945]
[1773150630669,2.5437496,2037.2,2036.2,3.53301945]
[1773150630872,6.67441,2037.3,2036.2,3.53301945]
[1773150631176,9.2181596,2037.3,2036.2,3.53301945]
[1773150631478,2.53557348,2037.4,2036.2,3.53301945]
[1773150631680,8.96457348,2037.5,2036.2,3.53301945]
[1773150631973,2.53557348,2037.4,2036.4,3.53301945]
[1773150632173,2.78097348,2037.4,2036.4,3.53301945]
[1773150633776,2.52592809,2037.6,2036.4,3.53301945]
[1773150633973,2.53099407,2037.8,2036.4,3.53301945]
[1773150634179,8.96099407,2037.8,2036.5,3.38315056]
[1773150634776,2.53099407,2037.8,2036.5,3.38315056]
[1773150634981,0.00506598,2037.8,2036.7,3.38315056]
[1773150635981,2.73793578,2037.7,2036.7,3.38315056]
[1773150636579,0.00506598,2037.8,2036.7,3.38315056]
[1773150636879,2.52507886,2037.8,2036.7,3.38315056]
[1773150637178,2.77042886,2037.8,2036.7,3.38315056]
[1773150637870,0.00506598,2037.8,2036.7,3.38315056]
[1773150638076,2.75733596,2037.7,2036.7,3.38315056]
[1773150638274,2.75733596,2037.7,2036.3,7.67432482]
[1773150638275,2.77013134,2037.1,2036.3,3.38315056]
[1773150638676,0.24543,2037.1,2036.3,3.38315056]
[1773150639078,2.76185172,2037.1,2036.3,3.38315056]
[1773150639683,2.51642172,2037.1,2036.3,3.38315056]
[1773150639981,2.75384576,2037.2,2036.3,3.38315056]
[1773150640381,2.35384576,2037.2,2036.3,3.38315056]
[1773150640777,2.04197153,2036.9,2036.1,3.38315056]
[1773150641176,2.28776071,2036.8,2036.1,3.38315056]
[1773150642374,2.28776071,2036.8,2036.0,0.00584016]
[1773150642781,2.28776071,2036.8,2036.0,3.38899072]
[1773150643680,0.24547,2036.8,2036.0,3.38899072]
[1773150643877,6.431,2037.1,2036.0,3.38899072]
[1773150644075,2.030603,2037.4,2036.2,3.38315056]
[1773150644284,0.24542,2037.2,2036.2,3.38315056]
[1773150644580,6.03595,2037.7,2036.2,3.38315056]
[1773150644581,1.90557954,2037.5,2036.2,3.38315056]
[1773150644783,2.15093954,2037.7,2036.2,3.38315056]
[1773150645378,2.15093954,2037.7,2036.3,0.24553]
[1773150645583,0.24536,2037.7,2036.5,3.38315056]
[1773150645982,0.25041598,2037.8,2036.7,3.38315056]
[1773150646178,2.14829849,2037.8,2036.7,3.38315056]
[1773150646383,0.00506598,2037.8,2036.7,13.08038671]
[1773150646586,1.90363706,2038.2,2037.0,3.40256884]
[1773150647087,1.90870304,2038.6,2037.2,3.40256884]